bitfinex-derivatives/quotes_BNBF0:USTF0_20230831
["timestamp","ask_amount","ask_price","bid_price","bid_amount"]
[1693484087349,0.1451536,224.24,223.86,0.19138337]
[1693484087750,0.1451536,224.23,223.86,0.19138337]
[1693484087951,0.1451536,224.23,223.85,0.26429533]
[1693484088155,0.1451536,224.23,223.86,0.19138337]
[1693484088653,0.1451536,224.23,223.87,0.19138337]
[1693484088853,0.1451536,224.23,223.85,0.19138337]
[1693484089056,0.1451536,224.23,223.86,0.19138337]
[1693484089555,0.1451536,224.23,223.87,0.19138337]
[1693484089757,0.1451536,224.23,223.85,0.19138337]
[1693484089951,0.1451536,224.23,223.86,0.19138337]
[1693484090151,0.1451536,224.23,223.87,0.19138337]
[1693484090354,0.1451536,224.23,223.85,0.19138337]
[1693484090551,0.1451536,224.23,223.86,0.19138337]
[1693484090759,0.1451536,224.23,223.85,0.19138337]
[1693484091053,0.1451536,224.23,223.86,0.19138337]
[1693484091258,0.1451536,224.23,223.85,0.19138337]
[1693484091452,0.1451536,224.23,223.86,0.19138337]
[1693484091656,0.1451536,224.23,223.85,0.19138337]
[1693484091855,0.1451536,224.23,223.86,0.19138337]
[1693484092055,0.1451536,224.23,223.85,0.19138337]
[1693484092357,0.1451536,224.23,223.86,0.19138337]
[1693484092553,0.1451536,224.23,223.85,0.19138337]
[1693484092760,0.1451536,224.23,223.86,0.19138337]
[1693484092952,0.1451536,224.23,223.87,0.19138337]
[1693484093151,0.1451536,224.24,223.85,0.26429533]
[1693484093355,0.1451536,224.25,223.86,0.26429533]
[1693484093556,0.1451536,224.25,223.87,0.19138337]
[1693484094659,0.1451536,224.25,223.86,0.19138337]
[1693484094960,0.1451536,224.25,223.86,0.26429533]
[1693484095153,0.1451536,224.25,223.87,0.19138337]
[1693484096656,0.1451536,224.26,223.87,0.19138337]
[1693484096854,0.1451536,224.25,223.87,0.19138337]
[1693484097457,0.1451536,224.26,223.87,0.19138337]
[1693484099759,0.1451536,224.26,223.87,0.26429533]
[1693484099956,0.1451536,224.26,223.88,0.19138337]
[1693484101363,0.1451536,224.25,223.89,0.19138337]
[1693484101663,0.1451536,224.26,223.9,0.19138337]
[1693484101862,0.1451536,224.25,223.88,0.19138337]
[1693484102062,0.1451536,224.25,223.89,0.19138337]
[1693484102358,0.1451536,224.25,223.9,0.19138337]
[1693484102556,0.1451536,224.25,223.86,0.07291196]
[1693484102557,0.1451536,224.25,223.87,0.19138337]
[1693484102761,0.1451536,224.25,223.88,0.19138337]
[1693484103063,0.1451536,224.25,223.89,0.19138337]
[1693484103264,0.1451536,224.25,223.9,0.19138337]
[1693484103458,0.1451536,224.25,223.91,0.19138337]
[1693484103663,0.1451536,224.24,223.87,0.19138337]
[1693484103863,0.1451536,224.24,223.86,0.07291196]
[1693484103864,0.1451536,224.24,223.88,0.19138337]
[1693484104162,0.1451536,224.24,223.89,0.19138337]
[1693484104365,0.1451536,224.25,223.87,0.26429533]
[1693484104663,0.1451536,224.25,223.88,0.19138337]
[1693484105165,0.1451536,224.24,223.88,0.19138337]
[1693484105366,0.1451536,224.24,223.87,0.19138337]
[1693484105566,0.1451536,224.23,223.88,0.19138337]
[1693484105765,0.1451536,224.23,223.86,0.07291196]
[1693484105766,0.1451536,224.23,223.87,0.19138337]
[1693484105966,0.1451536,224.23,223.88,0.19138337]
[1693484106270,0.1451536,224.23,223.89,0.19138337]
[1693484106466,0.1451536,224.23,223.88,0.19138337]
[1693484106665,0.1451536,224.23,223.86,0.07291196]
[1693484106666,0.1451536,224.22,223.89,0.19138337]
[1693484106866,0.1451536,224.23,223.87,0.19138337]
[1693484107064,0.1451536,224.18,223.87,0.19138337]
[1693484107265,0.1451536,224.17,223.83,0.19138337]
[1693484107465,0.1451536,224.17,223.84,0.19138337]
[1693484107666,0.1451536,224.17,223.82,0.19138337]
[1693484107866,0.1451536,224.17,223.83,0.19138337]
[1693484108069,0.1451536,224.17,223.82,0.19138337]
[1693484108263,0.1451536,224.17,223.83,0.19138337]
[1693484108766,0.1451536,224.17,223.84,0.19138337]
[1693484108963,0.1451536,224.17,223.82,0.19138337]
[1693484109267,0.1451536,224.17,223.83,0.19138337]
[1693484110265,0.1451536,224.16,223.83,0.19138337]
[1693484110661,0.1451536,224.17,223.83,0.19138337]
[1693484110868,0.1451536,224.16,223.83,0.19138337]
[1693484111063,0.1451536,224.16,223.84,0.19138337]
[1693484111262,0.1451536,224.16,223.85,0.19138337]
[1693484111564,0.1451536,224.16,223.86,0.19138337]
[1693484111768,0.1451536,224.16,223.82,0.19138337]
[1693484111969,0.1451536,224.16,223.83,0.19138337]
[1693484112267,0.1451536,224.16,223.84,0.19138337]
[1693484112568,0.1451536,224.16,223.85,0.19138337]
[1693484112769,0.1451536,224.17,223.83,0.19138337]
[1693484112969,0.1451536,224.17,223.84,0.19138337]
[1693484113163,0.1451536,224.17,223.85,0.19138337]
[1693484113365,0.1451536,224.17,223.86,0.19138337]
[1693484113568,0.1451536,224.17,223.81,0.07291196]
[1693484113569,0.1451536,224.17,223.82,0.19138337]
[1693484113770,0.1451536,224.17,223.81,0.07291196]
[1693484113771,0.1451536,224.17,223.83,0.19138337]
[1693484113965,0.1451536,224.17,223.82,0.19138337]
[1693484114270,0.1451536,224.17,223.83,0.19138337]
[1693484114470,0.1451536,224.17,223.82,0.19138337]
[1693484115071,0.1451536,224.17,223.81,0.19138337]
[1693484115272,0.1451536,224.17,223.82,0.19138337]
[1693484115572,0.1451536,224.17,223.83,0.19138337]
[1693484115772,0.1451536,224.17,223.8,0.19138337]
[1693484115972,0.1451536,224.17,223.81,0.19138337]
[1693484116174,0.1451536,224.17,223.82,0.19138337]
[1693484116373,0.1451536,224.17,223.83,0.19138337]
[1693484116569,0.1451536,224.17,223.8,0.19138337]
[1693484116778,0.1451536,224.17,223.81,0.19138337]
[1693484116975,0.1451536,224.17,223.8,0.19138337]
[1693484117174,0.1451536,224.17,223.81,0.19138337]
[1693484117375,0.1451536,224.17,223.8,0.19138337]
[1693484117575,2.41922675,224.29,223.81,0.19138337]
[1693484117576,0.1451536,224.18,223.81,0.19138337]
[1693484117776,0.1451536,224.18,223.82,0.19138337]
[1693484117973,0.1451536,224.18,223.83,0.19138337]
[1693484118170,0.1451536,224.18,223.8,0.19138337]
[1693484118370,0.1451536,224.18,223.81,0.19138337]
[1693484118574,0.1451536,224.18,223.8,0.19138337]
[1693484118776,0.1451536,224.18,223.81,0.19138337]
[1693484118976,0.1451536,224.18,223.79,0.19138337]
[1693484119175,0.1451536,224.18,223.8,0.19138337]
[1693484119478,0.1451536,224.18,223.81,0.19138337]
[1693484119676,0.1451536,224.18,223.82,0.19138337]
[1693484119870,0.1451536,224.18,223.79,0.19138337]
[1693484120076,0.1451536,224.18,223.8,0.19138337]
[1693484120377,0.1451536,224.18,223.81,0.19138337]
[1693484120577,0.1451536,224.18,223.79,0.19138337]
[1693484120778,0.1451536,224.18,223.8,0.19138337]
[1693484120978,0.1451536,224.18,223.79,0.19138337]
[1693484121282,0.1451536,224.18,223.8,0.19138337]
[1693484121478,0.1451536,224.18,223.81,0.19138337]
[1693484121782,0.1451536,224.18,223.79,0.19138337]
[1693484121983,0.1451536,224.18,223.8,0.19138337]
[1693484122283,0.1451536,224.19,223.81,0.19138337]
[1693484122482,0.1451536,224.19,223.79,0.19138337]
[1693484124478,0.1451536,224.19,223.8,0.19138337]
[1693484124681,0.1451536,224.19,223.81,0.19138337]
[1693484124882,0.1451536,224.19,223.77,0.07291196]
[1693484124883,0.1451536,224.19,223.82,0.19138337]
[1693484125182,0.1451536,224.18,223.83,0.19138337]
[1693484125378,0.1451536,224.18,223.84,0.19138337]
[1693484125580,0.1451536,224.18,223.77,0.19138337]
[1693484129683,0.1451536,224.18,223.77,0.26429533]
[1693484129978,0.1451536,224.18,223.78,0.19138337]
[1693484131285,0.1451536,224.17,223.78,0.19138337]
[1693484133286,0.1451536,224.16,223.78,0.19138337]
[1693484133684,0.1451536,224.1,223.78,0.19138337]
[1693484133885,0.1451536,224.1,223.73,0.19138337]
[1693484134087,0.1451536,224.1,223.74,0.18766656]
[1693484134384,0.1451536,224.09,223.75,0.18766656]
[1693484134582,0.1451536,224.1,223.73,0.18766656]
[1693484134780,0.1451536,224.1,223.74,0.18766656]
[1693484135086,0.1451536,224.1,223.75,0.18766656]
[1693484135279,0.1451536,224.1,223.72,0.18766656]
[1693484135485,0.1451536,224.1,223.73,0.18766656]
[1693484135679,0.1451536,224.1,223.74,0.18766656]
[1693484135989,0.1451536,224.1,223.75,0.18766656]
[1693484136285,0.1451536,224.1,223.76,0.18766656]
[1693484136585,0.1451536,224.1,223.77,0.18766656]
[1693484136785,0.1451536,224.11,223.78,0.18766656]
[1693484137086,0.1451536,224.11,223.79,0.18766656]
[1693484137285,0.1451536,224.11,223.69,0.18766656]
[1693484138686,0.1451536,224.1,223.69,0.18766656]
[1693484140287,0.1451536,224.1,223.69,0.26057852]
[1693484140487,0.1451536,224.1,223.7,0.18766656]
[1693484140681,0.1451536,224.09,223.69,0.26057852]
[1693484140885,0.1451536,224.09,223.7,0.18766656]
[1693484141690,0.1451536,224.09,223.69,0.18766656]
[1693484141884,0.1451536,224.09,223.7,0.18766656]
[1693484142082,0.1451536,224.09,223.69,0.18766656]
[1693484142285,0.1451536,224.09,223.7,0.18766656]
[1693484142485,0.1451536,224.09,223.69,0.18766656]
[1693484142686,0.1451536,224.1,223.7,0.18766656]
[1693484142883,0.1451536,224.1,223.71,0.18766656]
[1693484143087,0.1451536,224.1,223.72,0.18766656]
[1693484143383,0.1451536,224.1,223.73,0.18766656]
[1693484143589,0.1451536,224.1,223.69,0.18766656]
[1693484143789,0.1451536,224.1,223.7,0.18766656]
[1693484143990,0.1451536,224.1,223.71,0.18766656]
[1693484144182,0.1451536,224.1,223.72,0.18766656]
[1693484144385,0.1451536,224.1,223.73,0.18766656]
[1693484144585,0.1451536,224.1,223.74,0.18766656]
[1693484144788,0.1451536,224.1,223.69,0.18766656]
[1693484144989,0.1451536,224.1,223.7,0.18766656]
[1693484145184,0.1451536,224.1,223.69,0.18766656]
[1693484145392,0.1451536,224.1,223.7,0.18766656]
[1693484145588,0.1451536,224.1,223.68,0.07291196]
[1693484145589,0.1451536,224.1,223.71,0.18766656]
[1693484145790,0.1451536,224.1,223.69,0.18766656]
[1693484146093,0.1451536,224.1,223.7,0.18766656]
[1693484146388,0.1451536,224.1,223.68,0.07291196]
[1693484146389,0.1451536,224.1,223.71,0.18766656]
[1693484146589,0.1451536,224.1,223.68,0.07291196]
[1693484146590,0.1451536,224.1,223.72,0.18766656]
[1693484146791,0.1451536,224.1,223.73,0.18766656]
[1693484146994,0.1451536,224.1,223.74,0.18766656]
[1693484147189,0.1451536,224.1,223.69,0.18766656]
[1693484147389,0.1451536,224.1,223.7,0.18766656]
[1693484147593,0.1451536,224.1,223.69,0.18766656]
[1693484147793,0.1451536,224.1,223.7,0.18766656]
[1693484147988,0.1451536,224.1,223.69,0.18766656]
[1693484148186,0.1451536,224.1,223.7,0.18766656]
[1693484148391,0.1451536,224.1,223.69,0.18766656]
[1693484148587,0.1451536,224.1,223.7,0.18766656]
[1693484148791,0.1451536,224.1,223.71,0.18766656]
[1693484148992,0.1451536,224.1,223.72,0.18766656]
[1693484149192,0.1451536,224.1,223.73,0.18766656]
[1693484149395,0.1451536,224.1,223.69,0.18766656]
[1693484149595,0.1451536,224.1,223.7,0.18766656]
[1693484149794,0.1451536,224.1,223.69,0.18766656]
[1693484150100,0.1451536,224.1,223.7,0.18766656]
[1693484150291,0.1451536,224.1,223.71,0.18766656]
[1693484150492,0.1451536,224.1,223.72,0.18766656]
[1693484150800,0.1451536,224.1,223.73,0.18766656]
[1693484150990,0.1451536,224.1,223.68,0.18766656]
[1693484151294,0.1451536,224.1,223.69,0.18766656]
[1693484151490,0.1451536,224.09,223.68,0.18766656]
[1693484151797,0.1451536,224.09,223.69,0.18766656]
[1693484151995,0.1451536,224.09,223.7,0.18766656]
[1693484152197,0.1451536,224.09,223.68,0.18766656]
[1693484152397,0.1451536,224.09,223.69,0.18766656]
[1693484152597,0.1451536,224.09,223.68,0.18766656]
[1693484152797,0.1451536,224.09,223.69,0.18766656]
[1693484153000,0.1451536,224.09,223.68,0.18766656]
[1693484153199,0.1451536,224.09,223.7,0.18766656]
[1693484153497,0.1451536,224.09,223.6,0.14582393]
[1693484153498,0.1451536,224.09,223.71,0.18766656]
[1693484153693,0.1451536,224.09,223.68,0.18766656]
[1693484153899,0.1451536,224.09,223.69,0.18766656]
[1693484154094,0.1451536,224.09,223.7,0.18766656]
[1693484154293,0.1451536,224.09,223.67,0.07291196]
[1693484154294,0.1451536,224.09,223.71,0.18766656]
[1693484154494,0.1451536,224.09,223.72,0.18766656]
[1693484154799,0.1451536,224.09,223.73,0.18766656]
[1693484154998,0.1451536,224.09,223.74,0.18766656]
[1693484155198,0.1451536,224.09,223.75,0.18766656]
[1693484155396,0.1451536,224.09,223.68,0.18766656]
[1693484155598,0.1451536,224.09,223.69,0.18766656]
[1693484155797,0.1451536,224.09,223.7,0.18766656]
[1693484156000,0.1451536,224.09,223.71,0.18766656]
[1693484156300,0.1451536,224.09,223.72,0.18766656]
[1693484156500,0.1451536,224.09,223.68,0.18766656]
[1693484156703,0.1451536,224.09,223.69,0.18766656]
[1693484157001,0.1451536,224.09,223.7,0.18766656]
[1693484157195,0.1451536,224.09,223.68,0.18766656]
[1693484157395,0.1451536,224.09,223.69,0.18766656]
[1693484157597,0.1451536,224.08,223.68,0.26057852]
[1693484157797,0.1451536,224.08,223.69,0.18766656]
[1693484159596,0.1451536,224.08,223.69,0.26057852]
[1693484159797,0.1451536,224.08,223.7,0.18766656]
[1693484160695,0.1451536,224.08,223.7,0.26057852]
[1693484160901,0.1451536,224.08,223.71,0.18766656]
[1693484161200,0.1451536,224.08,223.72,0.18766656]
[1693484161400,0.1451536,224.08,223.73,0.18766656]
[1693484161603,0.1451536,224.08,223.7,0.26057852]
[1693484161802,0.1451536,224.08,223.74,0.18766656]
[1693484161996,0.1451536,224.09,223.75,0.18766656]
[1693484162198,0.1451536,224.09,223.76,0.18766656]
[1693484162402,0.1451536,224.09,223.77,0.18766656]
[1693484162604,0.1451536,224.08,223.78,0.18766656]
[1693484162804,0.1451536,224.08,223.79,0.18766656]
[1693484163006,0.1451536,224.08,223.71,0.07291196]
[1693484163206,0.1451536,224.08,223.72,0.18997956]
[1693484163802,0.1451536,224.08,223.72,0.26289152]
[1693484164101,0.1451536,224.08,223.73,0.18997956]
[1693484164503,0.1451536,224.07,223.73,0.18997956]
[1693484165806,0.1451536,224.07,223.73,0.26289152]
[1693484166006,0.1451536,224.07,223.74,0.18997956]
[1693484166399,0.1451536,224.07,223.75,0.07291196]
[1693484166602,0.1451536,224.06,223.76,0.18997956]
[1693484167309,0.1451536,224.07,223.76,0.18997956]
[1693484167511,0.1451536,224.05,223.76,0.26289152]
[1693484167710,0.1451536,224.05,223.77,0.18997956]
[1693484167910,0.1451536,224.05,223.77,0.26289152]
[1693484168103,0.1451536,224.06,223.78,0.18997956]
[1693484168510,0.1451536,224.04,223.79,0.07291196]
[1693484168809,0.1451536,224.04,223.8,0.18997956]
[1693484169008,0.1451536,224.04,223.79,0.18997956]
[1693484169210,0.1451536,224.08,223.82,0.07291196]
[1693484169507,0.1451536,224.09,223.83,0.26289152]
[1693484169707,0.1451536,224.09,223.84,0.18997956]
[1693484169909,0.1451536,224.1,223.84,0.18997956]
[1693484170108,0.1451536,224.1,223.82,0.18997956]
[1693484170409,0.1451536,224.11,223.83,0.18997956]
[1693484170805,0.1451536,224.12,223.83,0.18997956]
[1693484171002,0.1451536,224.12,223.82,0.18997956]
[1693484171208,0.1451536,224.12,223.83,0.18997956]
[1693484171403,0.1451536,224.12,223.84,0.18997956]
[1693484171608,0.1451536,224.12,223.85,0.18997956]
[1693484171909,0.1451536,224.13,223.86,0.18997956]
[1693484172111,0.1451536,224.13,223.8,0.07291196]
[1693484172311,0.1451536,224.13,223.81,0.18975242]
[1693484173110,0.1451536,224.13,223.82,0.18975242]
[1693484173306,0.1451536,224.13,223.83,0.18975242]
[1693484173503,0.1451536,224.13,223.84,0.18975242]
[1693484173707,0.1451536,224.13,223.8,0.18975242]
[1693484173910,0.1451536,224.13,223.81,0.18975242]
[1693484174111,0.1451536,224.13,223.8,0.18975242]
[1693484174410,0.1451536,224.13,223.81,0.18975242]
[1693484174606,0.1451536,224.13,223.82,0.18975242]
[1693484174811,0.1451536,224.13,223.78,0.07291196]
[1693484174812,0.1451536,224.14,223.83,0.18975242]
[1693484175110,0.1451536,224.13,223.84,0.18975242]
[1693484175311,0.1451536,224.14,223.79,0.18975242]
[1693484175510,0.1451536,224.14,223.8,0.18975242]
[1693484175706,0.1451536,224.14,223.79,0.18975242]
[1693484175910,0.1451536,224.14,223.8,0.18975242]
[1693484176106,0.1451536,224.14,223.81,0.18975242]
[1693484176311,0.1451536,224.14,223.82,0.18975242]
[1693484176506,0.1451536,224.14,223.79,0.18975242]
[1693484176705,0.1451536,224.14,223.8,0.18975242]
[1693484176910,0.1451536,224.14,223.78,0.18975242]
[1693484177110,0.1451536,224.14,223.79,0.18975242]
[1693484177613,0.1451536,224.15,223.79,0.18975242]
[1693484178111,0.1451536,224.15,223.78,0.18975242]
[1693484178312,0.1451536,224.15,223.79,0.18975242]
[1693484178513,0.1451536,224.15,223.8,0.18975242]
[1693484178808,0.1451536,224.15,223.81,0.18975242]
[1693484179014,0.1451536,224.15,223.78,0.18975242]
[1693484179216,0.1451536,224.15,223.79,0.18975242]
[1693484179412,0.1451536,224.15,223.78,0.18975242]
[1693484179615,0.1451536,224.15,223.79,0.18975242]
[1693484179915,0.1451536,224.15,223.8,0.18975242]
[1693484180214,0.1451536,224.16,223.81,0.18975242]
[1693484180416,0.1451536,224.16,223.78,0.18975242]
[1693484180613,0.1451536,224.15,223.79,0.18975242]
[1693484180809,0.1451536,224.15,223.8,0.18975242]
[1693484181010,0.1451536,224.15,223.81,0.18975242]
[1693484181212,0.1451536,224.15,223.82,0.18975242]
[1693484181412,0.1451536,224.15,223.83,0.18975242]
[1693484181614,0.1451536,224.15,223.77,0.26266438]
[1693484181809,0.1451536,224.15,223.78,0.18975242]
[1693484182014,0.1451536,224.15,223.77,0.18975242]
[1693484182214,0.1451536,224.15,223.78,0.18975242]
[1693484182415,0.1451536,224.15,223.79,0.18975242]
[1693484182615,0.1451536,224.16,223.77,0.26266438]
[1693484182812,0.1451536,224.16,223.78,0.18975242]
[1693484183015,0.1451536,224.15,223.78,0.18975242]
[1693484183216,0.1451536,224.16,223.77,0.18975242]
[1693484183414,0.1451536,224.16,223.78,0.18975242]
[1693484183617,0.1451536,224.16,223.77,0.18975242]
[1693484183815,0.1451536,224.16,223.78,0.18975242]
[1693484184017,0.1451536,224.16,223.77,0.18975242]
[1693484184218,0.1451536,224.16,223.78,0.18975242]
[1693484184412,0.1451536,224.16,223.79,0.18975242]
[1693484184617,0.1451536,224.16,223.8,0.18975242]
[1693484184818,0.1451536,224.16,223.81,0.18975242]
[1693484185018,0.1451536,224.16,223.76,0.07291196]
[1693484185019,0.1451536,224.16,223.82,0.18975242]
[1693484185220,0.1451536,224.16,223.83,0.18975242]
[1693484185419,0.1451536,224.16,223.84,0.18975242]
[1693484185618,0.1451536,224.16,223.85,0.18975242]
[1693484185819,0.1451536,224.16,223.86,0.18975242]
[1693484186124,0.1451536,224.16,223.76,0.07291196]
[1693484186318,0.1451536,224.16,223.77,0.18977644]
[1693484187624,0.1451536,224.15,223.77,0.18977644]
[1693484187826,0.1451536,224.16,223.77,0.18977644]
[1693484188625,0.1451536,224.15,223.77,0.18977644]
[1693484188822,0.1451536,224.15,223.77,0.2626884]
[1693484189025,0.1451536,224.15,223.78,0.18977644]
[1693484191824,0.1451536,224.14,223.78,0.18977644]
[1693484192927,0.1451536,224.14,223.78,0.2626884]
[1693484193127,0.1451536,224.14,223.79,0.18977644]
[1693484193925,0.1451536,224.13,223.79,0.18977644]
[1693484194722,0.1451536,224.13,223.79,0.2626884]
[1693484194922,0.1451536,224.13,223.8,0.18977644]
[1693484195327,0.1451536,224.13,223.81,0.18977644]
[1693484195527,0.1451536,224.13,223.82,0.18977644]
[1693484195828,0.1451536,224.13,223.83,0.18977644]
[1693484196028,0.1451536,224.13,223.84,0.18977644]
[1693484196223,0.1451536,224.13,223.85,0.18977644]
[1693484196427,0.1451536,224.13,223.79,0.07291196]
[1693484196622,0.1451536,224.13,223.8,0.18978526]
[1693484197628,0.1451536,224.12,223.8,0.18978526]
[1693484198730,0.1451536,224.12,223.8,0.26269722]
[1693484198932,0.1451536,224.12,223.81,0.18978526]
[1693484199329,0.1451536,224.12,223.8,0.18978526]
[1693484199525,0.9676907,224.18,223.79,0.07291196]
[1693484199526,0.1451536,224.11,223.81,0.18978526]
[1693484199725,0.1451536,224.11,223.8,0.18978526]
[1693484199928,0.1451536,224.11,223.81,0.18978526]
[1693484200130,0.1451536,224.1,223.81,0.18978526]
[1693484200331,0.1451536,224.1,223.8,0.18978526]
[1693484200630,0.1451536,224.1,223.81,0.18978526]
[1693484200831,0.1451536,224.1,223.8,0.18978526]
[1693484201131,0.1451536,224.1,223.81,0.18978526]
[1693484201727,0.1451536,224.09,223.81,0.26269722]
[1693484201928,0.1451536,224.09,223.82,0.18978526]
[1693484202729,0.1451536,224.08,223.82,0.18978526]
[1693484203635,0.1451536,224.04,223.77,0.07291196]
[1693484203830,0.1451536,224.02,223.78,0.18999863]
[1693484204027,3.38691745,224.23,223.78,0.18999863]
[1693484204028,0.1451536,224.04,223.78,0.18999863]
[1693484204332,0.1451536,224.04,223.75,0.07291196]
[1693484204333,0.1451536,224.04,223.79,0.18999863]
[1693484204534,0.1451536,224.04,223.75,0.07291196]
[1693484204735,0.1451536,224.04,223.76,0.19000233]
[1693484205835,0.1451536,224.05,223.76,0.19000233]
[1693484206036,0.07265761,224.03,223.75,0.19000233]
[1693484206236,0.07265761,224.03,223.76,0.19000233]
[1693484206934,0.07265761,224.04,223.76,0.19000233]
[1693484207135,0.07265761,224.04,223.75,0.19000233]
[1693484207330,0.07265761,224.04,223.76,0.19000233]
[1693484207539,0.07265761,224.04,223.77,0.19000233]
[1693484207834,0.07265761,224.05,223.78,0.19000233]
[1693484208034,0.07265761,224.05,223.75,0.19000233]
[1693484208234,0.07265761,224.05,223.76,0.19000233]
[1693484208430,0.07265761,224.05,223.75,0.19000233]
[1693484208635,0.07265761,224.05,223.76,0.19000233]
[1693484208834,0.07265761,224.05,223.75,0.19000233]
[1693484209033,0.07265761,224.05,223.76,0.19000233]
[1693484209229,0.07265761,224.05,223.74,0.19000233]
[1693484209433,0.07265761,224.05,223.75,0.19000233]
[1693484209634,0.07265761,224.05,223.74,0.19000233]
[1693484209836,0.07265761,224.05,223.75,0.19000233]
[1693484210031,0.07265761,224.05,223.76,0.19000233]
[1693484210228,0.07265761,224.05,223.77,0.19000233]
[1693484210433,0.07265761,224.05,223.78,0.19000233]
[1693484210634,0.07265761,224.05,223.74,0.19000233]
[1693484210837,0.07265761,224.06,223.75,0.19000233]
[1693484211031,0.07265761,224.06,223.73,0.19000233]
[1693484211238,0.07265761,224.06,223.74,0.19000233]
[1693484211433,0.07265761,224.06,223.73,0.19000233]
[1693484211635,0.07265761,224.06,223.74,0.19000233]
[1693484211835,0.07265761,224.06,223.75,0.19000233]
[1693484212039,0.07265761,224.06,223.76,0.19000233]
[1693484212238,0.07265761,224.06,223.73,0.19000233]
[1693484212439,0.07265761,224.06,223.74,0.19000233]
[1693484212639,0.07265761,224.06,223.73,0.19000233]
[1693484212833,0.07265761,224.06,223.74,0.19000233]
[1693484213031,0.07265761,224.06,223.75,0.19000233]
[1693484213232,0.07265761,224.06,223.76,0.19000233]
[1693484213432,0.07265761,224.06,223.73,0.19000233]
[1693484213633,0.07265761,224.06,223.74,0.19000233]
[1693484213834,0.07265761,224.06,223.75,0.19000233]
[1693484214133,0.07265761,224.06,223.76,0.19000233]
[1693484214336,0.07265761,224.06,223.77,0.19000233]
[1693484214538,0.07265761,224.06,223.72,0.19000233]
[1693484214737,0.07265761,224.06,223.73,0.19000233]
[1693484214935,0.07265761,224.06,223.74,0.19000233]
[1693484215142,0.07265761,224.06,223.75,0.19000233]
[1693484215342,0.07265761,224.05,223.72,0.19000233]
[1693484215645,0.07265761,224.05,223.73,0.19000233]
[1693484215844,0.07265761,224.05,223.74,0.19000233]
[1693484216044,0.07265761,224.05,223.7,0.07291196]
[1693484216045,0.07265761,224.05,223.71,0.19000233]
[1693484216245,0.07265761,224.05,223.72,0.19000233]
[1693484216443,0.07265761,224.05,223.73,0.19000233]
[1693484216644,0.07265761,224.05,223.74,0.19000233]
[1693484216842,0.07265761,224.05,223.75,0.19000233]
[1693484217142,0.07265761,224.05,223.76,0.19000233]
[1693484217347,0.07265761,224.05,223.77,0.19000233]
[1693484217547,0.07265761,224.05,223.7,0.19000233]
[1693484217742,0.07265761,224.05,223.71,0.19000233]
[1693484217945,0.07265761,224.05,223.72,0.19000233]
[1693484218242,0.07265761,224.05,223.73,0.19000233]
[1693484218445,0.07265761,224.05,223.7,0.19000233]
[1693484218643,0.07265761,224.05,223.71,0.19000233]
[1693484218841,0.07265761,224.05,223.72,0.19000233]
[1693484219041,0.07265761,224.05,223.7,0.19000233]
[1693484219348,0.07265761,224.06,223.71,0.19000233]
[1693484219647,0.07265761,224.06,223.72,0.19000233]
[1693484219848,0.07265761,224.06,223.7,0.19000233]
[1693484220149,0.07265761,224.06,223.71,0.19000233]
[1693484220447,0.07265761,224.06,223.72,0.19000233]
[1693484220649,0.07265761,224.06,223.7,0.19000233]
[1693484220848,0.07265761,224.06,223.71,0.19000233]
[1693484221041,0.07265761,224.06,223.7,0.19000233]
[1693484221240,0.07265761,224.06,223.71,0.19000233]
[1693484221445,0.07265761,224.06,223.7,0.19000233]
[1693484221747,0.07265761,224.06,223.71,0.19000233]
[1693484221948,0.07265761,224.06,223.7,0.19000233]
[1693484222149,0.1451536,224.08,223.71,0.19000233]
[1693484222150,0.07265761,224.0,223.71,0.19000233]
[1693484222347,0.07265761,224.0,223.6,0.07291196]
[1693484222543,0.07265761,223.99,223.61,0.19033686]
[1693484223045,0.07265761,223.98,223.62,0.19033686]
[1693484223250,0.07265761,223.98,223.6,0.19033686]
[1693484223451,0.07265761,223.98,223.61,0.19033686]
[1693484223652,0.07265761,223.99,223.6,0.19033686]
[1693484223852,0.07265761,223.99,223.61,0.19033686]
[1693484224047,0.07265761,223.99,223.57,0.07291196]
[1693484224048,0.07265761,223.99,223.58,0.19033686]
[1693484224251,0.07265761,223.99,223.59,0.19033686]
[1693484224444,0.07265761,223.99,223.34,0.97215958]
[1693484224445,0.07265761,224.0,223.58,0.19033686]
[1693484224645,0.07265761,224.0,223.59,0.19033686]
[1693484224854,0.07265761,224.01,223.57,0.19033686]
[1693484225044,0.07265761,224.0,223.58,0.19033686]
[1693484225247,0.07265761,224.01,223.57,0.19033686]
[1693484225448,0.07265761,224.01,223.58,0.19033686]
[1693484225649,0.07265761,224.01,223.57,0.19033686]
[1693484225946,0.07265761,224.01,223.58,0.19033686]
[1693484226148,0.07265761,224.01,223.56,0.19033686]
[1693484226347,0.07265761,224.01,223.57,0.19033686]
[1693484226547,0.07265761,224.02,223.56,0.26324882]
[1693484226852,0.07265761,224.02,223.57,0.19033686]
[1693484227651,0.07265761,224.02,223.58,0.19033686]
[1693484227851,0.07265761,224.02,223.59,0.19033686]
[1693484228052,0.07265761,224.02,223.56,0.19033686]
[1693484228247,0.07265761,224.02,223.57,0.19033686]
[1693484228452,0.07265761,224.02,223.56,0.19033686]
[1693484228652,0.07265761,224.02,223.57,0.19033686]
[1693484228854,0.07265761,224.02,223.58,0.19033686]
[1693484229050,0.07265761,224.02,223.59,0.19033686]